[Event "*** Titled Tuesday 3|2 Blitz"]
[Site "Chess.com"]
[Date "2017.03.07"]
[Round "7"]
[White "Hunninn"]
[Black "GianmarcoVaR"]
[Result "0-1"]
[WhiteElo "2429"]
[BlackElo "2449"]
[TimeControl "180+2"]
[EndTime "14:40:12 PST"]
[Termination "GianmarcoVaR won by resignation"]

1. d4 {[%clk 0:02:58.4]} 1... Nf6 {[%clk 0:02:59.2]} 2. Bf4 {[%clk 0:02:59.5]}
2... c5 {[%clk 0:02:56.9]} 3. e3 {[%clk 0:02:59.3]} 3... e6 {[%clk 0:02:49.4]}
4. c3 {[%clk 0:02:59.4]} 4... Nc6 {[%clk 0:02:41.9]} 5. Nd2 {[%clk 0:02:59.2]}
5... d5 {[%clk 0:02:38]} 6. Ngf3 {[%clk 0:02:57.7]} 6... Bd6 {[%clk 0:02:38.9]}
7. Bg3 {[%clk 0:02:58.3]} 7... O-O {[%clk 0:02:37.8]} 8. Bb5 {[%clk 0:02:59]}
8... Ne7 {[%clk 0:02:28]} 9. Bd3 {[%clk 0:02:59.9]} 9... Ng6 {[%clk 0:02:19.1]}
10. Ne5 {[%clk 0:02:57.8]} 10... Qc7 {[%clk 0:02:17.4]} 11. f4 {[%clk 0:02:58]}
11... b6 {[%clk 0:02:15.1]} 12. h4 {[%clk 0:02:54.1]} 12... Ne7 {[%clk
0:02:13.9]} 13. Bf2 {[%clk 0:02:52.3]} 13... Bb7 {[%clk 0:02:12.7]} 14. g4
{[%clk 0:02:53.3]} 14... Ne4 {[%clk 0:02:13.2]} 15. Bxe4 {[%clk 0:02:49]} 15...
dxe4 {[%clk 0:02:13.7]} 16. g5 {[%clk 0:02:50.3]} 16... Nf5 {[%clk 0:01:56.6]}
17. Qe2 {[%clk 0:02:41.1]} 17... f6 {[%clk 0:01:32.5]} 18. gxf6 {[%clk
0:02:38.5]} 18... gxf6 {[%clk 0:01:33.7]} 19. Ng4 {[%clk 0:02:38.2]} 19... Kh8
{[%clk 0:01:18.6]} 20. Rg1 {[%clk 0:02:37.3]} 20... cxd4 {[%clk 0:01:14.1]} 21.
exd4 {[%clk 0:02:34.7]} 21... Bxf4 {[%clk 0:01:05.7]} 22. Nxe4 {[%clk
0:02:35.3]} 22... Bh2 {[%clk 0:00:51.4]} 23. Rf1 {[%clk 0:02:23.7]} 23... Bd5
{[%clk 0:00:45.8]} 24. Ngxf6 {[%clk 0:02:09.9]} 24... Bc4 {[%clk 0:00:44.3]} 25.
Qh5 {[%clk 0:02:08.6]} 25... Bxf1 {[%clk 0:00:44.6]} 26. Kxf1 {[%clk 0:02:08.7]}
26... Rf7 {[%clk 0:00:41.7]} 27. d5 {[%clk 0:02:04.8]} 27... Raf8 {[%clk
0:00:40.2]} 28. dxe6 {[%clk 0:02:01.4]} 28... Rxf6 {[%clk 0:00:39.8]} 29. Nxf6
{[%clk 0:02:00]} 29... Rxf6 {[%clk 0:00:40.7]} 30. Qe8+ {[%clk 0:02:00.4]} 30...
Kg7 {[%clk 0:00:41.9]} 31. Kg2 {[%clk 0:01:22.3]} 31... Bg3 {[%clk 0:00:34.3]}
32. Qd7+ {[%clk 0:01:20.4]} 32... Qxd7 {[%clk 0:00:33.8]} 33. exd7 {[%clk
0:01:21.1]} 33... Bc7 {[%clk 0:00:34.6]} 34. Rd1 {[%clk 0:01:21]} 34... Rf8
{[%clk 0:00:28]} 35. a4 {[%clk 0:01:19.2]} 35... Kf7 {[%clk 0:00:27.6]} 36. a5
{[%clk 0:01:17.6]} 36... Ke6 {[%clk 0:00:28.4]} 37. axb6 {[%clk 0:01:17.6]}
37... axb6 {[%clk 0:00:29.7]} 38. c4 {[%clk 0:01:14.2]} 38... Rg8+ {[%clk
0:00:24.8]} 39. Kf3 {[%clk 0:01:14.1]} 39... Rd8 {[%clk 0:00:25]} 40. b4 {[%clk
0:01:13.6]} 40... Rxd7 {[%clk 0:00:20.4]} 41. Rxd7 {[%clk 0:01:11.8]} 41... Kxd7
{[%clk 0:00:21.6]} 42. Kg4 {[%clk 0:01:11.2]} 42... Ke6 {[%clk 0:00:22.3]} 43.
b5 {[%clk 0:01:08.9]} 43... Kf6 {[%clk 0:00:19.5]} 44. c5 {[%clk 0:01:08.5]}
44... bxc5 {[%clk 0:00:18.4]} 45. Bxc5 {[%clk 0:01:09.4]} 45... Bd6 {[%clk
0:00:17.1]} 46. Bxd6 {[%clk 0:01:03.7]} 46... Nxd6 {[%clk 0:00:18]} 47. b6
{[%clk 0:01:04.1]} 47... Kg6 {[%clk 0:00:15.3]} 48. h5+ {[%clk 0:00:57]} 48...
Kf6 {[%clk 0:00:15.5]} 49. Kf4 {[%clk 0:00:57.6]} 49... h6 {[%clk 0:00:13.1]}
50. Kg4 {[%clk 0:00:56.9]} 50... Ke5 {[%clk 0:00:13.5]} 51. Kf3 {[%clk
0:00:57.6]} 51... Nb7 {[%clk 0:00:08.1]} 52. Kg4 {[%clk 0:00:58.2]} 52... Ke4
{[%clk 0:00:07.1]} 53. Kg3 {[%clk 0:00:57.9]} 53... Kf5 {[%clk 0:00:07.1]} 54.
Kf3 {[%clk 0:00:57.9]} 54... Nc5 {[%clk 0:00:04]} 55. Ke3 {[%clk 0:00:57.2]}
55... Ke5 {[%clk 0:00:05.3]} 56. Kf3 {[%clk 0:00:57.3]} 56... Nb7 {[%clk
0:00:04.2]} 57. Ke3 {[%clk 0:00:58.3]} 57... Nc5 {[%clk 0:00:02.2]} 58. Kf3
{[%clk 0:00:59.1]} 58... Nb7 {[%clk 0:00:03.8]} 59. Ke3 {[%clk 0:01:00.2]} 59...
Nd6 {[%clk 0:00:05.7]} 60. Kf3 {[%clk 0:00:59.8]} 60... Kf5 {[%clk 0:00:07]} 61.
Kg3 {[%clk 0:00:59.1]} 61... Kg5 {[%clk 0:00:08.2]} 62. Kf3 {[%clk 0:01:00.4]}
62... Kxh5 {[%clk 0:00:08.6]} 63. Kf4 {[%clk 0:01:01.8]} 63... Kg6 {[%clk
0:00:09.4]} 64. Kg4 {[%clk 0:00:59.3]} 64... h5+ {[%clk 0:00:08.9]} 65. Kf4
{[%clk 0:01:00.2]} 65... Kf6 {[%clk 0:00:09.2]} 66. Kg3 {[%clk 0:01:01.3]} 66...
Kg5 {[%clk 0:00:10.2]} 67. Kh3 {[%clk 0:01:02]} 67... Kf5 {[%clk 0:00:08.2]} 68.
Kh4 {[%clk 0:01:02.7]} 68... Kg6 {[%clk 0:00:09.2]} 69. Kg3 {[%clk 0:01:01.6]}
69... Kg5 {[%clk 0:00:10.3]} 70. Kh3 {[%clk 0:01:02]} 70... h4 {[%clk
0:00:11.6]} 71. Kg2 {[%clk 0:01:02.5]} 71... Kg4 {[%clk 0:00:12.7]} 72. Kh2
{[%clk 0:01:03.1]} 72... h3 {[%clk 0:00:13.7]} 73. Kg1 {[%clk 0:00:59.4]} 73...
Kg3 {[%clk 0:00:14.8]} 74. Kh1 {[%clk 0:00:59.7]} 74... Ne4 {[%clk 0:00:10.9]}
75. b7 {[%clk 0:01:00.5]} 75... Nf2+ {[%clk 0:00:11.9]} 0-1

[Event "*** Titled Tuesday 3|2 Blitz"]
[Site "Chess.com"]
[Date "2017.03.07"]
[Round "7"]
[White "AlexZambrano"]
[Black "Makalexa"]
[Result "1-0"]
[WhiteElo "2295"]
[BlackElo "2122"]
[TimeControl "180+2"]
[EndTime "14:40:30 PST"]
[Termination "AlexZambrano won by resignation"]

1. e4 {[%clk 0:02:55.3]} 1... e5 {[%clk 0:02:59]} 2. Nf3 {[%clk 0:02:55.7]} 2...
Nc6 {[%clk 0:02:59.4]} 3. Bb5 {[%clk 0:02:56.2]} 3... a6 {[%clk 0:02:58.8]} 4.
Bxc6 {[%clk 0:02:57.2]} 4... dxc6 {[%clk 0:02:59.2]} 5. Nc3 {[%clk 0:02:59.1]}
5... f6 {[%clk 0:02:58.4]} 6. d4 {[%clk 0:02:59.7]} 6... exd4 {[%clk 0:02:55.1]}
7. Nxd4 {[%clk 0:03:01.6]} 7... c5 {[%clk 0:02:53.3]} 8. Nde2 {[%clk 0:03:02.6]}
8... Qxd1+ {[%clk 0:02:54]} 9. Nxd1 {[%clk 0:03:04.5]} 9... Bd7 {[%clk
0:02:49.3]} 10. Bf4 {[%clk 0:03:05.4]} 10... O-O-O {[%clk 0:02:48.9]} 11. Ne3
{[%clk 0:03:06.5]} 11... Bc6 {[%clk 0:02:45.9]} 12. f3 {[%clk 0:03:04.9]} 12...
Ne7 {[%clk 0:02:44.1]} 13. Rd1 {[%clk 0:03:05.9]} 13... Ng6 {[%clk 0:02:44.7]}
14. Rxd8+ {[%clk 0:03:05.4]} 14... Kxd8 {[%clk 0:02:45.7]} 15. Bg3 {[%clk
0:03:06.2]} 15... h5 {[%clk 0:02:41.6]} 16. h3 {[%clk 0:03:06]} 16... h4 {[%clk
0:02:42.6]} 17. Bh2 {[%clk 0:03:06.5]} 17... b6 {[%clk 0:02:37.9]} 18. Kf2
{[%clk 0:03:01.7]} 18... Kc8 {[%clk 0:02:32.5]} 19. Rd1 {[%clk 0:03:03.6]} 19...
Ne5 {[%clk 0:02:12]} 20. Bxe5 {[%clk 0:02:22.1]} 20... fxe5 {[%clk 0:02:11.7]}
21. Nc4 {[%clk 0:02:22.7]} 21... Rh5 {[%clk 0:02:09.7]} 22. Nc3 {[%clk
0:02:19.9]} 22... b5 {[%clk 0:02:03.5]} 23. Ne3 {[%clk 0:02:12.5]} 23... c4
{[%clk 0:02:02.2]} 24. Ncd5 {[%clk 0:02:13.4]} 24... Bc5 {[%clk 0:01:58.9]} 25.
Ke2 {[%clk 0:02:10.5]} 25... Rg5 {[%clk 0:01:57.7]} 26. Ng4 {[%clk 0:02:11.3]}
26... Bd6 {[%clk 0:01:53.8]} 27. c3 {[%clk 0:01:50.3]} 27... Kb7 {[%clk
0:01:52.3]} 28. Nde3 {[%clk 0:01:45.2]} 28... a5 {[%clk 0:01:47.9]} 29. Nf5
{[%clk 0:01:44.8]} 29... Rg6 {[%clk 0:01:45.4]} 30. Nxh4 {[%clk 0:01:43.7]}
30... Re6 {[%clk 0:01:43.6]} 31. Nf5 {[%clk 0:01:44.7]} 31... g6 {[%clk
0:01:44.6]} 32. Nxd6+ {[%clk 0:01:26.9]} 32... cxd6 {[%clk 0:01:46.5]} 33. a3
{[%clk 0:01:27.9]} 33... Kc7 {[%clk 0:01:42.1]} 34. Rh1 {[%clk 0:01:25.9]} 34...
Be8 {[%clk 0:01:41.2]} 35. Ne3 {[%clk 0:01:25.5]} 35... Kc6 {[%clk 0:01:37.7]}
36. a4 {[%clk 0:01:20.2]} 36... Kc5 {[%clk 0:01:36]} 37. axb5 {[%clk 0:01:20.7]}
37... Bxb5 {[%clk 0:01:33.7]} 38. Ra1 {[%clk 0:01:21.1]} 38... a4 {[%clk
0:01:33.2]} 39. h4 {[%clk 0:01:18.6]} 39... Re8 {[%clk 0:01:33.5]} 40. g4 {[%clk
0:01:17.6]} 40... Rb8 {[%clk 0:01:30.3]} 41. Nd5 {[%clk 0:01:12.3]} 41... Bc6
{[%clk 0:01:28.8]} 42. Nb4 {[%clk 0:01:12.9]} 42... Be8 {[%clk 0:01:26.5]} 43.
Rd1 {[%clk 0:01:05.8]} 43... Ra8 {[%clk 0:01:10.5]} 44. Rd5+ {[%clk 0:01:05.8]}
44... Kb6 {[%clk 0:01:10.6]} 45. Rxd6+ {[%clk 0:01:06]} 45... Kc7 {[%clk
0:01:07.7]} 46. Re6 {[%clk 0:01:05.9]} 46... Bd7 {[%clk 0:01:01.4]} 47. Nd5+
{[%clk 0:00:51.7]} 47... Kd8 {[%clk 0:00:58.5]} 48. Rxg6 {[%clk 0:00:45.3]}
48... Rb8 {[%clk 0:00:48]} 49. Rg8+ {[%clk 0:00:42.5]} 49... Be8 {[%clk
0:00:47.5]} 50. Nf6 {[%clk 0:00:43.7]} 50... Rxb2+ {[%clk 0:00:47.8]} 51. Ke3
{[%clk 0:00:44.8]} 51... a3 {[%clk 0:00:47.9]} 52. Rxe8+ {[%clk 0:00:45]} 52...
Kc7 {[%clk 0:00:48.1]} 53. Ra8 {[%clk 0:00:46.4]} 53... a2 {[%clk 0:00:49]} 54.
Nd5+ {[%clk 0:00:46.6]} 54... Kd6 {[%clk 0:00:47.5]} 55. h5 {[%clk 0:00:40.3]}
55... Rh2 {[%clk 0:00:35.7]} 56. Nb4 {[%clk 0:00:37.4]} 56... Kc5 {[%clk
0:00:33.3]} 57. Ra5+ {[%clk 0:00:35.9]} 57... Kd6 {[%clk 0:00:33.1]} 58. Rxa2
{[%clk 0:00:36.3]} 58... Rh1 {[%clk 0:00:33.5]} 59. Nd5 {[%clk 0:00:33.6]} 59...
Re1+ {[%clk 0:00:31.5]} 60. Kf2 {[%clk 0:00:33.3]} 60... Rc1 {[%clk 0:00:31.6]}
61. Kg2 {[%clk 0:00:32.1]} 61... Kc5 {[%clk 0:00:29.7]} 62. h6 {[%clk
0:00:30.3]} 62... Rb1 {[%clk 0:00:23.9]} 63. Ra8 {[%clk 0:00:29.3]} 63... Rb7
{[%clk 0:00:22.9]} 64. Rc8+ {[%clk 0:00:29.1]} 64... Kd6 {[%clk 0:00:22.3]} 65.
Rc7 {[%clk 0:00:28.8]} 65... Rb2+ {[%clk 0:00:22]} 66. Kg3 {[%clk 0:00:29.2]}
66... Rc2 {[%clk 0:00:20.7]} 67. g5 {[%clk 0:00:27]} 67... Rxc3 {[%clk
0:00:21.3]} 68. Nxc3 {[%clk 0:00:27.2]} 68... Kxc7 {[%clk 0:00:22.1]} 69. h7
{[%clk 0:00:27.6]} 69... Kd6 {[%clk 0:00:22.8]} 70. h8=Q {[%clk 0:00:28.4]}
70... Kc5 {[%clk 0:00:24.7]} 71. Qxe5+ {[%clk 0:00:29]} 71... Kb4 {[%clk
0:00:25.1]} 72. Qb5+ {[%clk 0:00:28.1]} 72... Kxc3 {[%clk 0:00:25.3]} 73. Qxc4+
{[%clk 0:00:28.9]} 73... Kxc4 {[%clk 0:00:25.3]} 74. g6 {[%clk 0:00:29.9]} 74...
Kd3 {[%clk 0:00:25]} 75. g7 {[%clk 0:00:30.5]} 75... Ke2 {[%clk 0:00:26.9]} 76.
e5 {[%clk 0:00:31.4]} 76... Kf1 {[%clk 0:00:26.9]} 77. f4 {[%clk 0:00:31.6]}
77... Kg1 {[%clk 0:00:27.1]} 78. f5 {[%clk 0:00:32.2]} 78... Kh1 {[%clk
0:00:26.4]} 79. f6 {[%clk 0:00:33.2]} 1-0

[Event "*** Titled Tuesday 3|2 Blitz"]
[Site "Chess.com"]
[Date "2017.03.07"]
[Round "7"]
[White "Gordima"]
[Black "iturrizaga"]
[Result "1-0"]
[WhiteElo "2496"]
[BlackElo "2625"]
[TimeControl "180+2"]
[EndTime "14:41:33 PST"]
[Termination "Gordima won on time"]

1. Nf3 {[%clk 0:02:59.4]} 1... c5 {[%clk 0:03:00.6]} 2. g3 {[%clk 0:03:00.5]}
2... g6 {[%clk 0:03:01.4]} 3. Bg2 {[%clk 0:03:01.7]} 3... Bg7 {[%clk 0:03:02]}
4. O-O {[%clk 0:03:03.3]} 4... Nf6 {[%clk 0:02:59.4]} 5. b3 {[%clk 0:03:00.4]}
5... O-O {[%clk 0:02:59]} 6. Bb2 {[%clk 0:03:01.6]} 6... b6 {[%clk 0:02:55]} 7.
c4 {[%clk 0:03:02]} 7... Bb7 {[%clk 0:02:55.8]} 8. d4 {[%clk 0:02:57.1]} 8... e6
{[%clk 0:02:53.6]} 9. Nc3 {[%clk 0:02:52.8]} 9... Qe7 {[%clk 0:02:50.1]} 10. d5
{[%clk 0:02:38.3]} 10... exd5 {[%clk 0:02:45.9]} 11. cxd5 {[%clk 0:02:27.8]}
11... d6 {[%clk 0:02:46.3]} 12. Nd2 {[%clk 0:02:24.2]} 12... Nbd7 {[%clk
0:02:45]} 13. Qc2 {[%clk 0:02:22]} 13... Ne5 {[%clk 0:02:37.5]} 14. h3 {[%clk
0:02:18.7]} 14... Nh5 {[%clk 0:02:33.6]} 15. a4 {[%clk 0:02:13.9]} 15... f5
{[%clk 0:02:30.1]} 16. e3 {[%clk 0:02:15.3]} 16... a6 {[%clk 0:02:23.9]} 17. Nc4
{[%clk 0:02:14]} 17... Qc7 {[%clk 0:01:58.4]} 18. Kh2 {[%clk 0:02:13.4]} 18...
Rae8 {[%clk 0:01:56.1]} 19. Rae1 {[%clk 0:02:11.8]} 19... Bc8 {[%clk 0:01:45.6]}
20. Nd2 {[%clk 0:02:07.4]} 20... c4 {[%clk 0:01:34.7]} 21. bxc4 {[%clk 0:02:03]}
21... Nxc4 {[%clk 0:01:35.4]} 22. Nd1 {[%clk 0:01:57.9]} 22... b5 {[%clk
0:01:28.7]} 23. Bxg7 {[%clk 0:01:49]} 23... Nxg7 {[%clk 0:01:22.2]} 24. Nb2
{[%clk 0:01:49.4]} 24... Bd7 {[%clk 0:01:20.1]} 25. Nbxc4 {[%clk 0:01:47.6]}
25... bxc4 {[%clk 0:01:22]} 26. Qxc4 {[%clk 0:01:48.5]} 26... Qa5 {[%clk
0:01:12.5]} 27. Nb3 {[%clk 0:01:36.5]} 27... Qxa4 {[%clk 0:01:12.6]} 28. Qxa4
{[%clk 0:01:37]} 28... Bxa4 {[%clk 0:01:14.5]} 29. Nd4 {[%clk 0:01:38.5]} 29...
Bb5 {[%clk 0:01:15.5]} 30. Nxb5 {[%clk 0:01:33.5]} 30... axb5 {[%clk 0:01:17.4]}
31. Rb1 {[%clk 0:01:34.8]} 31... Rb8 {[%clk 0:01:18.9]} 32. Rfc1 {[%clk
0:01:35.7]} 32... Rf7 {[%clk 0:01:20.5]} 33. Rb4 {[%clk 0:01:27.7]} 33... Ne8
{[%clk 0:01:18]} 34. Rc6 {[%clk 0:01:15.8]} 34... Rc7 {[%clk 0:01:15.1]} 35. g4
{[%clk 0:01:14.8]} 35... fxg4 {[%clk 0:01:05.6]} 36. hxg4 {[%clk 0:01:15.5]}
36... Kf7 {[%clk 0:00:58.6]} 37. g5 {[%clk 0:01:14.4]} 37... Rxc6 {[%clk
0:00:54.1]} 38. dxc6 {[%clk 0:01:15.1]} 38... Nc7 {[%clk 0:00:55.8]} 39. Kg3
{[%clk 0:01:06.3]} 39... d5 {[%clk 0:00:40.2]} 40. Rh4 {[%clk 0:00:41.6]} 40...
Rh8 {[%clk 0:00:37.5]} 41. Rd4 {[%clk 0:00:38]} 41... Ke6 {[%clk 0:00:36.5]} 42.
e4 {[%clk 0:00:39.2]} 42... Ke5 {[%clk 0:00:27.4]} 43. Rb4 {[%clk 0:00:22.3]}
43... dxe4 {[%clk 0:00:27.7]} 44. Rxe4+ {[%clk 0:00:22.8]} 44... Kd6 {[%clk
0:00:29]} 45. Rd4+ {[%clk 0:00:23.2]} 45... Kc5 {[%clk 0:00:30.2]} 46. Rd7
{[%clk 0:00:23.8]} 46... Kb6 {[%clk 0:00:31.3]} 47. f4 {[%clk 0:00:20.1]} 47...
b4 {[%clk 0:00:31.9]} 48. Be4 {[%clk 0:00:20.6]} 48... h6 {[%clk 0:00:21.2]} 49.
Bxg6 {[%clk 0:00:17.6]} 49... hxg5 {[%clk 0:00:22.1]} 50. f5 {[%clk 0:00:19.1]}
50... Rh4 {[%clk 0:00:18.9]} 51. f6 {[%clk 0:00:17]} 51... Rf4 {[%clk
0:00:20.1]} 52. f7 {[%clk 0:00:17.9]} 52... Kxc6 {[%clk 0:00:20]} 53. Rd8 {[%clk
0:00:04.8]} 53... Ne6 {[%clk 0:00:21.1]} 54. Rb8 {[%clk 0:00:03.8]} 54... Kd6
{[%clk 0:00:21]} 55. Rb6+ {[%clk 0:00:04.1]} 55... Ke7 {[%clk 0:00:21.2]} 56.
Rb8 {[%clk 0:00:04.3]} 56... Kd6 {[%clk 0:00:14.6]} 57. Rb6+ {[%clk 0:00:04.9]}
57... Ke5 {[%clk 0:00:15.2]} 58. Rb8 {[%clk 0:00:05.4]} 58... Rf6 {[%clk
0:00:11.4]} 59. Bh5 {[%clk 0:00:06]} 59... Kd6 {[%clk 0:00:10.9]} 60. Re8 {[%clk
0:00:06.6]} 60... b3 {[%clk 0:00:09.1]} 61. Bg4 {[%clk 0:00:06]} 61... Nc5
{[%clk 0:00:02.7]} 62. f8=Q+ {[%clk 0:00:05.8]} 62... Rxf8 {[%clk 0:00:04.3]}
63. Rxf8 {[%clk 0:00:07.7]} 63... Ke5 {[%clk 0:00:05.7]} 64. Rb8 {[%clk
0:00:07.4]} 64... Kd4 {[%clk 0:00:06.9]} 65. Bf5 {[%clk 0:00:08]} 65... Kc3
{[%clk 0:00:07.4]} 66. Kf3 {[%clk 0:00:08.2]} 66... b2 {[%clk 0:00:06.5]} 67.
Ke2 {[%clk 0:00:08.9]} 67... Nb3 {[%clk 0:00:06.8]} 68. Kd1 {[%clk 0:00:08.3]}
68... Nd4 {[%clk 0:00:07.1]} 69. Be4 {[%clk 0:00:06.1]} 69... Nb3 {[%clk
0:00:05.4]} 70. Rc8+ {[%clk 0:00:06.5]} 70... Kd4 {[%clk 0:00:06.8]} 71. Bb1
{[%clk 0:00:05.6]} 71... Nc5 {[%clk 0:00:03.7]} 72. Kc2 {[%clk 0:00:05.7]} 72...
g4 {[%clk 0:00:03.9]} 73. Rg8 {[%clk 0:00:05.7]} 1-0

[Event "*** Titled Tuesday 3|2 Blitz"]
[Site "Chess.com"]
[Date "2017.03.07"]
[Round "7"]
[White "pKiLz5Rn9b"]
[Black "ZapataCharlesS"]
[Result "0-1"]
[WhiteElo "2553"]
[BlackElo "2662"]
[TimeControl "180+2"]
[EndTime "14:41:36 PST"]
[Termination "ZapataCharlesS won by checkmate"]

1. e4 {[%clk 0:03:02]} 1... e5 {[%clk 0:02:49.7]} 2. Nf3 {[%clk 0:03:02.4]} 2...
Nc6 {[%clk 0:02:50.2]} 3. Bc4 {[%clk 0:03:03.9]} 3... Bc5 {[%clk 0:02:50.2]} 4.
c3 {[%clk 0:03:05.1]} 4... Nf6 {[%clk 0:02:51]} 5. d3 {[%clk 0:03:06.1]} 5...
O-O {[%clk 0:02:50.7]} 6. O-O {[%clk 0:03:06.9]} 6... a5 {[%clk 0:02:52.2]} 7.
Re1 {[%clk 0:03:03.9]} 7... d6 {[%clk 0:02:51.3]} 8. h3 {[%clk 0:02:59.4]} 8...
Ne7 {[%clk 0:02:51.8]} 9. Nbd2 {[%clk 0:02:58.7]} 9... Ng6 {[%clk 0:02:52.5]}
10. Nf1 {[%clk 0:02:59.1]} 10... Ba7 {[%clk 0:02:49.7]} 11. Ng3 {[%clk
0:02:57.9]} 11... c6 {[%clk 0:02:40.6]} 12. Bb3 {[%clk 0:02:58.5]} 12... b5
{[%clk 0:02:37.5]} 13. d4 {[%clk 0:02:55.1]} 13... a4 {[%clk 0:02:35.8]} 14. Bc2
{[%clk 0:02:55.9]} 14... Re8 {[%clk 0:02:21.4]} 15. Be3 {[%clk 0:02:54.7]} 15...
Bb6 {[%clk 0:02:19]} 16. Qd2 {[%clk 0:02:50]} 16... exd4 {[%clk 0:01:59]} 17.
Nxd4 {[%clk 0:02:43.5]} 17... Ne5 {[%clk 0:01:52.6]} 18. b3 {[%clk 0:02:39.9]}
18... Bxh3 {[%clk 0:01:41.9]} 19. f4 {[%clk 0:02:31.4]} 19... Nfg4 {[%clk
0:01:10.5]} 20. gxh3 {[%clk 0:02:15.2]} 20... Bxd4 {[%clk 0:01:02.5]} 21. hxg4
{[%clk 0:01:57.8]} 21... Nf3+ {[%clk 0:01:02.5]} 22. Kg2 {[%clk 0:01:58.9]}
22... Nxd2 {[%clk 0:01:02]} 23. cxd4 {[%clk 0:01:57.1]} 23... axb3 {[%clk
0:00:59]} 24. axb3 {[%clk 0:01:57.4]} 24... Rxa1 {[%clk 0:00:57.9]} 25. Rxa1
{[%clk 0:01:59.3]} 25... Nxe4 {[%clk 0:00:59.6]} 26. Bxe4 {[%clk 0:01:51.6]}
26... d5 {[%clk 0:00:59.8]} 27. Rc1 {[%clk 0:01:47.8]} 27... dxe4 {[%clk
0:00:59.8]} 28. Rxc6 {[%clk 0:01:49.1]} 28... Qd5 {[%clk 0:01:00.7]} 29. Rc3
{[%clk 0:01:49.8]} 29... b4 {[%clk 0:01:01.7]} 30. Rc4 {[%clk 0:01:50.8]} 30...
g6 {[%clk 0:01:01.1]} 31. Rxb4 {[%clk 0:01:47.7]} 31... Rc8 {[%clk 0:01:01.8]}
32. f5 {[%clk 0:01:43]} 32... Qd6 {[%clk 0:00:43.9]} 33. Rc4 {[%clk 0:01:42.5]}
33... Ra8 {[%clk 0:00:41]} 34. Rc2 {[%clk 0:01:28.3]} 34... Qd5 {[%clk
0:00:37.1]} 35. Rc3 {[%clk 0:01:25.6]} 35... Qd6 {[%clk 0:00:36]} 36. Rc2 {[%clk
0:01:25.7]} 36... Kg7 {[%clk 0:00:35.2]} 37. g5 {[%clk 0:01:19.4]} 37... Qd5
{[%clk 0:00:30.7]} 38. f6+ {[%clk 0:01:13.3]} 38... Kf8 {[%clk 0:00:31.6]} 39.
Rb2 {[%clk 0:00:56]} 39... Ra3 {[%clk 0:00:24.4]} 40. Kf2 {[%clk 0:00:51]} 40...
Rxb3 {[%clk 0:00:24.1]} 41. Rxb3 {[%clk 0:00:52.1]} 41... Qxb3 {[%clk
0:00:25.6]} 42. Nxe4 {[%clk 0:00:53.7]} 42... Qc2+ {[%clk 0:00:26.2]} 43. Kf3
{[%clk 0:00:54.6]} 43... Qd1+ {[%clk 0:00:27.6]} 44. Kf2 {[%clk 0:00:54.2]}
44... Qc2+ {[%clk 0:00:23.5]} 45. Kf3 {[%clk 0:00:55.1]} 45... Qa2 {[%clk
0:00:25.4]} 46. Bf4 {[%clk 0:00:53.7]} 46... Qd5 {[%clk 0:00:25.6]} 47. Ke3
{[%clk 0:00:53.4]} 47... Qb3+ {[%clk 0:00:26.7]} 48. Ke2 {[%clk 0:00:51.9]}
48... Ke8 {[%clk 0:00:26.5]} 49. Be5 {[%clk 0:00:48]} 49... Qa2+ {[%clk
0:00:26.3]} 50. Kd3 {[%clk 0:00:45.4]} 50... Kd7 {[%clk 0:00:27.9]} 51. Ke3
{[%clk 0:00:41.6]} 51... Ke6 {[%clk 0:00:27.2]} 52. Ng3 {[%clk 0:00:37.1]} 52...
Kd5 {[%clk 0:00:27.6]} 53. Kf3 {[%clk 0:00:36.3]} 53... Qb3+ {[%clk 0:00:28.2]}
54. Kf4 {[%clk 0:00:36.5]} 54... Qd3 {[%clk 0:00:29.3]} 55. Kg4 {[%clk
0:00:34.8]} 55... Qd1+ {[%clk 0:00:29.6]} 56. Kf4 {[%clk 0:00:35.4]} 56... Qd3
{[%clk 0:00:31.1]} 57. Kg4 {[%clk 0:00:36.1]} 57... Qd2 {[%clk 0:00:30.4]} 58.
Kh4 {[%clk 0:00:28.1]} 58... h6 {[%clk 0:00:27]} 59. gxh6 {[%clk 0:00:26.5]}
59... Qxh6+ {[%clk 0:00:28.9]} 60. Kg4 {[%clk 0:00:28.4]} 60... Qd2 {[%clk
0:00:30.4]} 61. Kf3 {[%clk 0:00:27.6]} 61... Qd3+ {[%clk 0:00:30.9]} 62. Kg4
{[%clk 0:00:27.3]} 62... Ke6 {[%clk 0:00:30.8]} 63. Kg5 {[%clk 0:00:25.2]} 63...
Qf3 {[%clk 0:00:29.4]} 64. Kh4 {[%clk 0:00:22.3]} 64... Qe3 {[%clk 0:00:26.8]}
65. Kg4 {[%clk 0:00:23.1]} 65... Qh6 {[%clk 0:00:26.1]} 66. Kf3 {[%clk
0:00:22.4]} 66... Qh4 {[%clk 0:00:27.5]} 67. Kg2 {[%clk 0:00:21.3]} 67... Qg4
{[%clk 0:00:28]} 68. Kf2 {[%clk 0:00:22.6]} 68... Kd5 {[%clk 0:00:29.1]} 69. Ke3
{[%clk 0:00:23.3]} 69... g5 {[%clk 0:00:29.5]} 70. Ne2 {[%clk 0:00:24.5]} 70...
Qh3+ {[%clk 0:00:28.9]} 71. Kf2 {[%clk 0:00:25.4]} 71... Ke6 {[%clk 0:00:27.3]}
72. Ng3 {[%clk 0:00:24.9]} 72... Qg4 {[%clk 0:00:28.8]} 73. Ke3 {[%clk
0:00:25.7]} 73... Qd1 {[%clk 0:00:29.4]} 74. Ne2 {[%clk 0:00:25.6]} 74... g4
{[%clk 0:00:29.6]} 75. Ng3 {[%clk 0:00:25.4]} 75... Qf3+ {[%clk 0:00:29.1]} 76.
Kd2 {[%clk 0:00:26.8]} 76... Kd5 {[%clk 0:00:30.8]} 77. Ne2 {[%clk 0:00:19.2]}
77... Kc4 {[%clk 0:00:31.9]} 78. Ke1 {[%clk 0:00:11.9]} 78... Kd3 {[%clk
0:00:30.5]} 79. Nc1+ {[%clk 0:00:10.8]} 79... Ke3 {[%clk 0:00:30.6]} 80. Nb3
{[%clk 0:00:04]} 80... Qe2# {[%clk 0:00:29.8]} 0-1

[Event "*** Titled Tuesday 3|2 Blitz"]
[Site "Chess.com"]
[Date "2017.03.07"]
[Round "8"]
[White "Schemato"]
[Black "Vegan4future"]
[Result "0-1"]
[WhiteElo "2250"]
[BlackElo "2248"]
[TimeControl "180+2"]
[EndTime "14:46:28 PST"]
[Termination "Vegan4future won by checkmate"]

1. c4 {[%clk 0:03:02]} 1... e5 {[%clk 0:03:00.2]} 2. g3 {[%clk 0:03:03.1]} 2...
Nc6 {[%clk 0:02:50.7]} 3. Nc3 {[%clk 0:03:03.2]} 3... Bc5 {[%clk 0:02:50]} 4.
Bg2 {[%clk 0:03:03.9]} 4... d6 {[%clk 0:02:45.8]} 5. e3 {[%clk 0:03:04.2]} 5...
Bf5 {[%clk 0:02:47.3]} 6. d3 {[%clk 0:02:56.2]} 6... Qd7 {[%clk 0:02:42.5]} 7.
h3 {[%clk 0:02:55.3]} 7... Nge7 {[%clk 0:02:37.4]} 8. Nge2 {[%clk 0:02:56.2]}
8... O-O {[%clk 0:02:37.8]} 9. g4 {[%clk 0:02:56.9]} 9... Bg6 {[%clk 0:02:38.9]}
10. a3 {[%clk 0:02:54.3]} 10... a5 {[%clk 0:02:39.6]} 11. b3 {[%clk 0:02:51]}
11... Rab8 {[%clk 0:02:36.7]} 12. e4 {[%clk 0:02:34.5]} 12... f5 {[%clk
0:02:08.2]} 13. gxf5 {[%clk 0:02:32.7]} 13... Nxf5 {[%clk 0:02:10.1]} 14. exf5
{[%clk 0:02:29]} 14... Qxf5 {[%clk 0:02:12]} 15. Bxc6 {[%clk 0:02:03.2]} 15...
Bxf2+ {[%clk 0:02:03.3]} 16. Kd2 {[%clk 0:02:02.9]} 16... Qxd3# {[%clk
0:02:04.1]} 0-1